fUSD/lending_fUSD_20240126
["ID","MTS","AMOUNT","RATE_DAILY","PERIOD"]
[312825005,1706302241323,-186.17018641,0.00041896,2]
[312825006,1706302241332,-3022.43755205,0.00041896,4]
[312825007,1706302241341,-199.80077813,0.00041896,4]
[312825008,1706302241351,-1153.75350663,0.00041896,4]
[312825009,1706302241360,-303.29562871,0.00041896,4]
[312825010,1706302241370,-163.21312279,0.00041896,4]
[312825011,1706302241379,-10486.82282849,0.00041896,4]
[312825012,1706302241390,-1071.57950665,0.00041896,4]
[312825013,1706302241399,-182.80696533,0.00041896,4]
[312825014,1706302241409,-697.35894259,0.00041896,30]
[312825015,1706302241418,-306.18581609,0.00041896,4]
[312825016,1706302241427,-302.35408567,0.00041896,4]
[312825017,1706302241437,-1585.88267064,0.00041896,2]
[312825018,1706302241446,-933.15965402,0.00041896,2]
[312825019,1706302241455,-230.73082258,0.00041897,4]
[312825020,1706302241464,-248.03566672,0.00041897,4]
[312825021,1706302241473,-800.0,0.00041897,4]
[312825022,1706302241483,-711.49718173,0.00041897,4]
[312825023,1706302241492,-264.55629569,0.00041897,4]
[312825024,1706302241501,-1061.27262846,0.00041897,4]
[312825025,1706302241511,-207.98262082,0.00041897,4]
[312825026,1706302241520,-297.1012333,0.00041897,4]
[312825027,1706302241529,-2632.13677838,0.00041897,4]
[312825028,1706302241539,-1600.0,0.00041897,4]
[312825029,1706302241548,-225.96958111,0.00041897,10]
[312825030,1706302241558,-2604.99968715,0.00041897,4]
[312825031,1706302241567,-210.10824909,0.00041898,4]
[312825032,1706302241576,-45671.82031688,0.00041898,4]
[312825033,1706302241586,-107222.57858227,0.00041898,4]
[312825034,1706302241594,-4144.98007054,0.00041898,2]
[312825035,1706302241603,-287.69278085,0.00041899,2]
[312825036,1706302241613,-150.54,0.0004194,2]
[312825037,1706302241622,-150.54,0.0004194,2]
[312825038,1706302241631,-85671.6241269,0.0004195,8]
[312825039,1706302241640,-1831.52,0.00041955,5]
[312825040,1706302241649,-150.54,0.00041988,2]
[312825041,1706302241658,-150.54,0.0004199,2]
[312825042,1706302241667,-150.54,0.0004199,2]
[312825043,1706302241676,-150.54,0.0004199,2]
[312825044,1706302241686,-150.54,0.0004199,2]
[312825045,1706302241695,-1836.3,0.00041991,5]
[312825046,1706302241704,-155.0,0.00041998,4]
[312825047,1706302241713,-40647.26356793,0.00041998,4]
[312825048,1706302241723,-185346.58058288,0.00042,30]
[312825049,1706302241732,-594.54602477,0.00042,4]
[312825050,1706302241741,-1481.28,0.00042,7]
[312825051,1706302241750,-168.589193,0.00042,14]
[312825052,1706302241759,-168.589193,0.00042,14]
[312825053,1706302241769,-151.0,0.00042,14]
[312825054,1706302241781,-153.111628,0.00042,14]
[312825055,1706302241790,-151.0,0.00042,14]
[312825056,1706302241799,-151.0,0.00042,14]
[312825057,1706302241808,-151.0,0.00042,14]
[312825058,1706302241817,-151.0,0.00042,14]
[312825059,1706302241826,-1557.173901,0.00042,14]
[312825060,1706302241835,-151.0,0.00042,14]
[312825061,1706302241845,-151.0,0.00042,14]
[312825062,1706302241854,-1557.173901,0.00042,14]
[312825063,1706302241865,-151.0,0.00042,14]
[312825064,1706302241874,-151.0,0.00042,14]
[312825065,1706302241883,-186.004244,0.00042,14]
[312825066,1706302241891,-1594.269902,0.00042,14]
[312825067,1706302241900,-1594.269902,0.00042,14]
[312825068,1706302241909,-193.144534,0.00042,14]
[312825069,1706302241918,-193.144534,0.00042,14]
[312825070,1706302241927,-154.187394,0.00042,14]
[312825071,1706302241937,-151.0,0.00042,14]
[312825072,1706302241946,-154.187394,0.00042,14]
[312825073,1706302241956,-155.085926,0.00042,14]
[312825074,1706302241965,-152.096852,0.00042,14]
[312825075,1706302241974,-151.0,0.00042,14]
[312825076,1706302241983,-151.0,0.00042,14]
[312825077,1706302241992,-1000.0,0.00042205,2]
[312825078,1706302242002,-600.0,0.00042317,2]
[312825079,1706302242011,-2699.85285835,0.00042363,5]
[312825080,1706302242019,-171.21009078,0.0004237,20]
[312825081,1706302242029,-155.0,0.0004237,2]
[312825082,1706302242038,-1000.0,0.000425,2]
[312825083,1706302242047,-392.81296141,0.00042542,17]
[312825084,1706302242175,-150.33,0.00042782,2]
[312825085,1706302242185,-666.0,0.0004289,2]
[312825086,1706302242194,-150.54,0.00042939,2]
[312825087,1706302242204,-500.0,0.00042949,2]
[312825088,1706302242213,-500.0,0.00042949,2]
[312825089,1706302242222,-500.0,0.00042949,2]
[312825090,1706302242232,-500.0,0.00042949,2]
[312825091,1706302242241,-300.0,0.00042949,2]
[312825092,1706302242250,-500.0,0.00042949,2]
[312825093,1706302242258,-500.0,0.00042949,2]
[312825094,1706302242267,-500.0,0.00042949,2]
[312825095,1706302242276,-500.0,0.00042949,2]
[312825096,1706302242285,-500.0,0.00042949,2]
[312825097,1706302242294,-500.0,0.00042949,2]
[312825098,1706302242303,-500.0,0.00042949,2]
[312825099,1706302242312,-500.0,0.00042949,2]
[312825100,1706302242321,-500.0,0.00042949,2]
[312825101,1706302242330,-500.0,0.00042949,2]
[312825102,1706302242340,-2141.0,0.0004299,2]
[312825103,1706302242349,-644.0,0.0004299,2]
[312825104,1706302242358,-153.62602514,0.00043051,18]
[312825105,1706302242367,-500.0,0.00043099,2]
[312825106,1706302242376,-500.0,0.00043099,2]
[312825107,1706302242385,-500.0,0.00043099,2]
[312825108,1706302242394,-500.0,0.00043099,2]
[312825109,1706302242403,-500.0,0.00043099,2]
[312825110,1706302242412,-500.0,0.00043099,2]
[312825111,1706302242422,-500.0,0.00043099,2]
[312825112,1706302242431,-500.0,0.00043099,2]
[312825113,1706302242441,-500.0,0.00043099,2]
[312825114,1706302242450,-300.0,0.00043099,2]
[312825115,1706302242461,-500.0,0.00043099,2]
[312825116,1706302242470,-500.0,0.00043099,2]
[312825117,1706302242480,-500.0,0.00043099,2]
[312825118,1706302242489,-500.0,0.00043099,2]
[312825119,1706302242499,-500.0,0.00043099,2]
[312825120,1706302242508,-500.0,0.00043099,2]
[312825121,1706302242517,-500.0,0.00043099,2]
[312825122,1706302242526,-500.0,0.00043099,2]
[312825123,1706302242536,-500.0,0.00043099,2]
[312825124,1706302242545,-500.0,0.00043099,2]
[312825125,1706302242554,-151.0,0.00043099,14]
[312825126,1706302242564,-182.688338,0.00043099,14]
[312825127,1706302242574,-991.404627,0.00043099,14]
[312825128,1706302242583,-151.0,0.00043099,14]
[312825129,1706302242592,-991.404627,0.00043099,14]
[312825130,1706302242602,-500.0,0.00043099,2]
[312825131,1706302242611,-500.0,0.00043099,2]
[312825132,1706302242620,-500.0,0.00043099,2]
[312825133,1706302242629,-500.0,0.00043099,2]
[312825134,1706302242638,-500.0,0.00043099,2]
[312825135,1706302242646,-500.0,0.00043099,2]
[312825136,1706302242655,-500.0,0.00043099,2]
[312825137,1706302242664,-500.0,0.00043099,2]
[312825138,1706302242673,-500.0,0.00043099,2]
[312825139,1706302242682,-500.0,0.00043099,2]
[312825140,1706302242691,-500.0,0.00043099,2]
[312825141,1706302242700,-500.0,0.00043099,2]
[312825142,1706302242709,-500.0,0.00043099,2]
[312825143,1706302242718,-500.0,0.00043099,2]
[312825144,1706302242728,-500.0,0.00043099,2]
[312825145,1706302242737,-165.4,0.000431,7]
[312825146,1706302242746,-3844.0,0.0004319,2]
[312825147,1706302242756,-1050.0,0.0004319,2]
[312825148,1706302242765,-369.62,0.000432,4]
[312825149,1706302242776,-369.62,0.000432,4]
[312825150,1706302242785,-369.62,0.000432,4]
[312825151,1706302242794,-369.62,0.000432,4]
[312825152,1706302242804,-369.62,0.000432,4]
[312825153,1706302242813,-369.62,0.000432,4]
[312825154,1706302242822,-369.62,0.000432,4]
[312825155,1706302242830,-369.62,0.000432,4]
[312825156,1706302242840,-369.62,0.000432,4]
[312825157,1706302242849,-369.62,0.000432,4]
[312825158,1706302242860,-369.62,0.000432,4]
[312825159,1706302242870,-369.62,0.000432,4]
[312825160,1706302242879,-369.62,0.000432,4]
[312825163,1706302242888,-369.62,0.000432,4]
[312825165,1706302242898,-369.62,0.000432,4]
[312825167,1706302242907,-369.62,0.000432,4]
[312825170,1706302242916,-369.62,0.000432,4]
[312825173,1706302242925,-369.62,0.000432,4]
[312825175,1706302242934,-369.62,0.000432,4]
[312825176,1706302242943,-369.62,0.000432,4]
[312825177,1706302242953,-153.2,0.000432,4]
[312825178,1706302242961,-153.2,0.000432,4]
[312825179,1706302242970,-837.0,0.00043212,2]
[312825180,1706302242979,-948.0,0.00043212,2]
[312825181,1706302242988,-365.197,0.00043212,2]
[312825182,1706302242997,-1223.692,0.00043212,2]
[312825183,1706302243006,-315.0,0.00043212,2]
[312825184,1706302243016,-860.0,0.00043212,2]
[312825185,1706302243025,-150.0,0.00043212,2]
[312825186,1706302243035,-1138.0,0.00043212,2]
[312825187,1706302243045,-2911.0,0.00043212,2]
[312825188,1706302243054,-19743.0,0.00043212,2]
[312825189,1706302243063,-150.0,0.00043212,2]
[312825190,1706302243073,-2278.0,0.00043212,2]
[312825191,1706302243082,-1032.0,0.00043212,2]
[312825192,1706302243091,-150.0,0.00043212,2]
[312825193,1706302243101,-1481.28,0.000433,7]
[312825194,1706302243110,-337.47,0.00043325,2]
[312825195,1706302243119,-2699.85285835,0.00043505,5]
[312825196,1706302243128,-1000.0,0.00043677,2]
[312825197,1706302243137,-155.0,0.0004374,2]
[312825198,1706302243146,-241.59,0.0004387,10]
[312825199,1706302243155,-2607.0,0.0004389,2]
[312825200,1706302243164,-784.0,0.0004389,2]
[312825201,1706302243174,-392.81296141,0.00043915,18]
[312825202,1706302243183,-10414.0,0.0004398,30]
[312825203,1706302243193,-1475.99315294,0.00043988,6]
[312825204,1706302243202,-700.0,0.00044,14]
[312825205,1706302243211,-7670.89156366,0.00044,2]
[312825206,1706302243220,-258.56,0.00044085,15]
[312825207,1706302243229,-165.4,0.000441,7]
[312825208,1706302243238,-1481.28,0.000442,7]
[312825209,1706302243247,-150.33,0.00044257,2]
[312825210,1706302243257,-2699.85285835,0.00044647,5]
[312825212,1706302243266,-50000.0,0.00045,25]
[312825214,1706302243275,-252.81337463,0.00045,2]
[312825216,1706302243284,-151.0,0.00045,14]
[312825217,1706302243293,-151.0,0.00045,14]
[312825218,1706302243302,-151.0,0.00045,14]
[312825219,1706302243311,-150.0,0.00045,2]
[312825220,1706302243320,-5067.0,0.00045,2]
[312825221,1706302243329,-151.0,0.00045102,14]
[312825222,1706302243338,-151.0,0.00045102,14]
[312825223,1706302243347,-155.0,0.0004511,2]
[312825224,1706302243356,-1000.0,0.00045149,2]
[312825225,1706302243365,-1000.0,0.000452,2]
[312825226,1706302243375,-392.81296141,0.00045288,20]
[312825227,1706302243384,-184.0,0.00045332,2]
[312825228,1706302243399,-361.54578775,0.0004539,2]
[312825229,1706302243416,-690.0,0.000454,30]
[312825231,1706302243425,-871.0,0.000454,30]
[312825232,1706302243434,-1000.0,0.000454,30]
[312825233,1706302243444,-337.47,0.00045589,2]
[312825234,1706302243453,-1481.28,0.000457,7]
[312825235,1706302243462,-150.33,0.00045732,2]
[312825236,1706302243472,-2699.85285835,0.00045789,5]
[312825237,1706302243481,-5000.0,0.0004581,4]
[312825238,1706302243490,-190.35028038,0.00045999,5]
[312825239,1706302243500,-150.0,0.00045999,5]
[312825240,1706302243509,-50000.0,0.00046,26]
[312825241,1706302243518,-2359.30020477,0.00046078,2]
[312825242,1706302243527,-2715.0,0.0004619,2]
[312825243,1706302243536,-713.0,0.0004619,2]
[312825244,1706302243546,-837.0,0.00046212,2]
[312825245,1706302243554,-933.0,0.00046212,2]
[312825246,1706302243564,-420.564,0.00046212,2]
[312825247,1706302243573,-1138.0,0.00046212,2]
[312825248,1706302243583,-2899.0,0.00046212,2]
[312825249,1706302243595,-13326.025,0.00046212,2]
[312825250,1706302243604,-150.0,0.00046212,2]
[312825251,1706302243613,-2266.0,0.00046212,2]
[312825252,1706302243623,-1024.0,0.00046212,2]
[312825253,1706302243632,-153.62602514,0.00046221,30]
[312825254,1706302243641,-155.0,0.0004648,2]
[312825255,1706302243650,-2251.77564656,0.00046495,41]
[312825256,1706302243659,-392.81296141,0.00046661,22]
[312825257,1706302243668,-3000.0,0.00046868,11]
[312825258,1706302243678,-2699.85285835,0.00046932,5]
[312825259,1706302243687,-1475.99315294,0.00046966,8]
[312825260,1706302243695,-50000.0,0.00047,27]
[312825261,1706302243704,-150.33,0.00047208,2]
[312825262,1706302243717,-272.21882599,0.00047701,15]
[312825263,1706302243726,-55555.0,0.00047749,5]
[312825264,1706302243735,-3968.0,0.0004779,2]
[312825265,1706302243744,-1336.0,0.0004779,2]
[312825266,1706302243753,-258.56,0.00047821,15]
[312825267,1706302243763,-524.00793511,0.00047829,2]
[312825268,1706302243774,-155.0,0.0004785,2]
[312825269,1706302243784,-337.47,0.00047852,2]
[312825270,1706302243794,-4561.0,0.0004789,2]
[312825271,1706302243803,-2406.0,0.0004789,2]
[312825272,1706302243812,-13998.29006135,0.00047897,2]
[312825273,1706302243822,-18147.90517418,0.00047899,2]
[312825274,1706302243831,-151.0,0.00047899,14]
[312825275,1706302243840,-1000.0,0.000479,2]
[312825276,1706302243850,-29816.0,0.0004799,2]
[312825277,1706302243860,-8959.0,0.0004799,2]
[312825278,1706302243869,-157.19856787,0.00047997,4]
[312825279,1706302243878,-2623.23288806,0.00047997,15]
[312825280,1706302243888,-6585.24969435,0.00047997,2]
[312825281,1706302243897,-304.08770656,0.00047997,2]
[312825282,1706302243906,-501.82966339,0.00047997,4]
[312825283,1706302243915,-29607.98949995,0.00047997,2]
[312825284,1706302243924,-764.94187002,0.00047998,4]
[312825285,1706302243934,-164.99634728,0.00047998,4]
[312825286,1706302243943,-475.03910094,0.00047998,4]
[312825287,1706302243953,-470.40011406,0.00047999,4]
[312825288,1706302243962,-5944.35050434,0.00047999,60]
[312825289,1706302243971,-210.66238745,0.00047999,5]
[312825290,1706302243981,-350.60960799,0.00047999,2]
[312825291,1706302243990,-50000.0,0.00048,28]
[312825292,1706302243999,-269347.706997,0.00048,2]
[312825293,1706302244009,-4665.0,0.00048,30]
[312825294,1706302244018,-151.0,0.00048,14]
[312825295,1706302244027,-151.0,0.00048,14]
[312825296,1706302244037,-151.0,0.00048,14]
[312825297,1706302244047,-168.589193,0.00048,14]
[312825298,1706302244056,-168.589193,0.00048,14]
[312825299,1706302244065,-151.0,0.00048,14]
[312825300,1706302244075,-1557.173901,0.00048,14]
[312825301,1706302244084,-172.846378,0.00048,14]
[312825302,1706302244093,-151.0,0.00048,14]
[312825303,1706302244102,-1557.173901,0.00048,14]
[312825304,1706302244112,-151.0,0.00048,14]
[312825305,1706302244120,-151.0,0.00048,14]
[312825306,1706302244130,-1594.269902,0.00048,14]
[312825307,1706302244139,-1594.269902,0.00048,14]
[312825308,1706302244149,-193.144534,0.00048,14]
[312825309,1706302244158,-193.144534,0.00048,14]
[312825310,1706302244167,-154.187394,0.00048,14]
[312825311,1706302244177,-151.0,0.00048,14]
[312825312,1706302244186,-154.187394,0.00048,14]
[312825313,1706302244195,-151.0,0.00048,14]
[312825314,1706302244205,-151.0,0.00048,14]
[312825315,1706302244214,-991.404627,0.00048,14]
[312825316,1706302244223,-151.0,0.00048,14]
[312825317,1706302244232,-991.404627,0.00048,14]
[312825318,1706302244242,-392.81296141,0.00048035,24]
[312825319,1706302244251,-2699.85285835,0.00048074,5]
[312825320,1706302244261,-433.91206314,0.00048355,2]
[312825321,1706302244270,-1499.13822034,0.000485,30]
[312825322,1706302244279,-638.0,0.000486,2]
[312825323,1706302244289,-150.0,0.000486,30]
[312825324,1706302244298,-206.0,0.00048629,10]
[312825325,1706302244308,-150.33,0.00048683,2]
[312825326,1706302244317,-369.62,0.000487,6]
[312825327,1706302244327,-369.62,0.000487,6]
[312825328,1706302244336,-369.62,0.000487,6]
[312825329,1706302244346,-369.62,0.000487,6]
[312825330,1706302244355,-369.62,0.000487,6]
[312825331,1706302244365,-369.62,0.000487,6]
[312825332,1706302244374,-369.62,0.000487,6]
[312825333,1706302244387,-369.62,0.000487,6]
[312825334,1706302244397,-369.62,0.000487,6]
[312825335,1706302244406,-369.62,0.000487,6]
[312825336,1706302244416,-369.62,0.000487,6]
[312825337,1706302244425,-369.62,0.000487,6]
[312825338,1706302244435,-369.62,0.000487,6]
[312825339,1706302244445,-369.62,0.000487,6]
[312825340,1706302244455,-369.62,0.000487,6]
[312825341,1706302244464,-369.62,0.000487,6]
[312825342,1706302244474,-369.62,0.000487,6]
[312825343,1706302244483,-369.62,0.000487,6]
[312825344,1706302244493,-369.62,0.000487,6]
[312825345,1706302244502,-369.62,0.000487,6]
[312825346,1706302244512,-153.2,0.000487,6]
[312825347,1706302244521,-153.2,0.000487,6]
[312825348,1706302244530,-150.0,0.00048723,30]
[312825349,1706302244539,-150.0,0.00048845,30]
[312825350,1706302244549,-150.0,0.00048968,30]
[312825351,1706302244558,-178.99921591,0.00048999,60]
[312825352,1706302244567,-50000.0,0.00049,29]
[312825353,1706302244577,-18792.69001867,0.00049,120]
[312825354,1706302244586,-150.0,0.00049091,30]
[312825355,1706302244596,-2251.77564656,0.0004911,45]
[312825356,1706302244605,-837.0,0.00049212,2]
[312825357,1706302244614,-1138.0,0.00049212,2]
[312825358,1706302244624,-150.0,0.00049214,30]
[312825359,1706302244754,-2699.85285835,0.00049216,5]
[312825360,1706302244763,-800.0,0.0004928,10]
[312825361,1706302244774,-150.0,0.00049336,30]
[312825362,1706302244785,-666.0,0.00049373,4]
[312825363,1706302244794,-153.62602514,0.00049391,42]
[312825364,1706302244803,-392.81296141,0.00049408,25]
[312825365,1706302244813,-150.0,0.00049459,30]
[312825366,1706302244822,-1481.28,0.000495,7]
[312825367,1706302244831,-150.0,0.00049582,30]
[312825368,1706302244840,-150.0,0.00049705,30]
[312825369,1706302244850,-150.0,0.00049827,30]
[312825370,1706302244859,-1475.99315294,0.00049944,11]
[312825371,1706302244869,-150.0,0.0004995,30]
[312825372,1706302244879,-150.0,0.00049999,60]
[312825373,1706302244888,-50000.0,0.0005,40]
[312825374,1706302244897,-7856.48523005,0.0005,4]
[312825375,1706302244906,-26898.56888069,0.0005,4]
[312825376,1706302244915,-268.29413791,0.0005,120]
[312825377,1706302244924,-155.0,0.0005,4]
[312825378,1706302244934,-183.05072978,0.0005,4]
[312825379,1706302244944,-4103.91146302,0.0005,4]
[312825380,1706302244953,-393.92114039,0.0005,120]
[312825381,1706302244962,-269.26220601,0.0005,4]
[312825382,1706302244971,-2956.2494956,0.0005,4]
[312825383,1706302244980,-155.0,0.0005,4]
[312825384,1706302244990,-5000.0,0.0005,120]
[312825385,1706302244999,-5000.0,0.0005,120]
[312825386,1706302245008,-273.1475843,0.0005,2]
[312825387,1706302245021,-9370.0,0.0005,13]
[312825388,1706302245031,-151.0,0.0005,14]
[312825389,1706302245040,-160.0,0.0005,30]
[312825390,1706302245050,-5067.0,0.0005,30]
[312825391,1706302245059,-150.0,0.00050073,30]
[312825392,1706302245068,-638.0,0.0005009,4]
[312825393,1706302245077,-337.47,0.00050116,2]
[312825394,1706302245087,-150.33,0.00050158,2]
[312825395,1706302245096,-1617.75,0.00050174,120]
[312825396,1706302245107,-150.0,0.00050195,30]
[312825397,1706302245116,-151.0,0.00050203,14]
[312825398,1706302245125,-150.0,0.00050318,30]
[312825399,1706302245134,-2699.85285835,0.00050358,14]
[312825400,1706302245144,-5000.0,0.00050375,120]
[312825401,1706302245153,-5000.0,0.00050375,120]
[312825402,1706302245162,-151.0,0.00050383,14]
[312825403,1706302245171,-151.0,0.00050383,14]
[312825404,1706302245181,-151.0,0.00050383,14]
[312825405,1706302245191,-286.694002,0.00050383,14]
[312825406,1706302245200,-150.0,0.00050441,30]
[312825407,1706302245210,-2901.43307647,0.000505,30]
[312825408,1706302245219,-5000.0,0.000505,40]
[312825409,1706302245228,-27461.17,0.000505,30]
[312825410,1706302245238,-1481.28,0.000505,7]
[312825411,1706302245247,-150.0,0.00050564,30]
[312825412,1706302245257,-500.0,0.00050611,2]
[312825413,1706302245266,-500.0,0.00050611,2]
[312825414,1706302245275,-500.0,0.00050611,2]
[312825415,1706302245284,-500.0,0.00050611,2]
[312825416,1706302245294,-500.0,0.00050611,2]
[312825417,1706302245304,-274.8487,0.00050611,2]
[312825418,1706302245313,-1000.0,0.00050611,2]
[312825419,1706302245322,-1000.0,0.00050611,2]
[312825420,1706302245332,-1000.0,0.00050611,2]
[312825421,1706302245342,-1000.0,0.00050611,2]
[312825422,1706302245351,-1000.0,0.00050611,2]
[312825423,1706302245360,-1000.0,0.00050611,2]
[312825424,1706302245370,-1000.0,0.00050611,2]
[312825425,1706302245379,-1000.0,0.00050611,2]
[312825426,1706302245389,-1000.0,0.00050611,2]
[312825427,1706302245399,-1000.0,0.00050611,2]
[312825428,1706302245409,-1000.0,0.00050611,2]
[312825429,1706302245419,-1000.0,0.00050611,2]
[312825430,1706302245428,-1000.0,0.00050611,2]
[312825431,1706302245438,-1000.0,0.00050611,2]
[312825432,1706302245448,-1000.0,0.00050611,2]
[312825433,1706302245458,-1000.0,0.00050611,2]
[312825434,1706302245468,-1000.0,0.00050611,2]
[312825435,1706302245478,-1000.0,0.00050611,2]
[312825436,1706302245487,-1000.0,0.00050611,2]
[312825437,1706302245497,-1000.0,0.00050611,2]
[312825438,1706302245507,-1000.0,0.00050611,2]
[312825439,1706302245516,-1000.0,0.00050611,2]
[312825440,1706302245526,-1000.0,0.00050611,2]
[312825441,1706302245535,-1000.0,0.00050611,2]
[312825442,1706302245544,-1000.0,0.00050611,2]
[312825443,1706302245554,-1000.0,0.00050611,2]
[312825444,1706302245563,-1000.0,0.00050611,2]
[312825445,1706302245572,-1000.0,0.00050611,2]
[312825446,1706302245582,-1000.0,0.00050611,2]
[312825447,1706302245592,-1000.0,0.00050611,2]
[312825448,1706302245602,-1000.0,0.00050611,2]
[312825449,1706302245611,-1000.0,0.00050611,2]
[312825450,1706302245621,-1000.0,0.00050611,2]
[312825451,1706302245631,-1000.0,0.00050611,2]
[312825452,1706302245640,-1000.0,0.00050611,2]
[312825453,1706302245650,-1000.0,0.00050611,2]
[312825454,1706302245660,-1000.0,0.00050611,2]
[312825455,1706302245669,-1000.0,0.00050611,2]
[312825456,1706302245679,-473.9846,0.00050611,2]
[312825457,1706302245688,-500.0,0.00050611,2]
[312825458,1706302245698,-500.0,0.00050611,2]
[312825459,1706302245708,-500.0,0.00050611,2]
[312825461,1706302245717,-500.0,0.00050611,2]
[312825463,1706302245727,-500.0,0.00050611,2]
[312825465,1706302245737,-500.0,0.00050611,2]
[312825467,1706302245747,-500.0,0.00050611,2]
[312825469,1706302245756,-500.0,0.00050611,2]
[312825470,1706302245767,-16421.42944879,0.00050646,4]
[312825472,1706302245777,-150.0,0.00050686,30]
[312825474,1706302245787,-1048.0,0.0005069,2]
[312825476,1706302245797,-3078.21,0.00050694,120]
[312825478,1706302245806,-1000.0,0.000507,2]
[312825480,1706302245816,-5000.0,0.0005075,120]
[312825482,1706302245826,-5000.0,0.0005075,120]
[312825484,1706302245835,-392.81296141,0.00050781,27]
[312825486,1706302245845,-30711.0,0.0005079,2]
[312825488,1706302245857,-10340.0,0.0005079,2]
[312825490,1706302245867,-151.0,0.000508,14]
[312825492,1706302245876,-150.0,0.000508,28]
[312825494,1706302245886,-150.0,0.00050809,30]
[312825497,1706302245894,-150.01,0.00050864,2]
[312825500,1706302245904,-977.20860712,0.00050864,2]
[312825503,1706302245914,-190.35028038,0.00050893,10]
[312825506,1706302245923,-150.0,0.00050893,10]
[312825508,1706302245933,-93656.7458022,0.00050894,2]
[312825510,1706302245943,-7914.9570575,0.00050894,2]
[312825512,1706302245952,-3419.2562695,0.00050894,2]
[312825514,1706302245961,-247.6127323,0.00050894,2]
[312825516,1706302245971,-98763.7909999,0.00050894,2]
[312825518,1706302245980,-5162.8213276,0.00050897,2]
[312825520,1706302245989,-83938.9248223,0.00050897,2]
[312825522,1706302245998,-5345.666424,0.00050897,2]
[312825524,1706302246008,-29607.98949995,0.00050897,2]
[312825526,1706302246018,-1000.0,0.00050899,120]
[312825528,1706302246028,-508774.54821349,0.000509,30]
[312825530,1706302246038,-163.74933528,0.000509,2]
[312825532,1706302246048,-217.503608,0.000509,30]
[312825534,1706302246057,-300.0,0.000509,28]
[312825536,1706302246067,-380.09202361,0.000509,4]
[312825538,1706302246077,-158.77314264,0.000509,4]
[312825540,1706302246086,-151.0,0.000509,14]
[312825542,1706302246095,-151.0,0.000509,14]
[312825544,1706302246104,-157.451141,0.000509,14]
[312825546,1706302246114,-151.0,0.000509,14]
[312825548,1706302246123,-151.0,0.000509,14]
[312825550,1706302246133,-151.0,0.000509,14]
[312825552,1706302246142,-151.0,0.000509,14]
[312825554,1706302246152,-151.0,0.000509,14]
[312825556,1706302246161,-200.0,0.000509,28]
[312825558,1706302246171,-168.589193,0.000509,14]
[312825559,1706302246181,-168.589193,0.000509,14]
[312825560,1706302246190,-1769.269346,0.000509,26]
[312825561,1706302246200,-200.0,0.000509,2]
[312825562,1706302246209,-151.0,0.000509,14]
[312825563,1706302246218,-1557.173901,0.000509,14]
[312825564,1706302246228,-151.0,0.000509,14]
[312825565,1706302246237,-1557.173901,0.000509,14]
[312825566,1706302246246,-151.0,0.000509,14]
[312825567,1706302246256,-151.0,0.000509,14]
[312825568,1706302246265,-1594.269902,0.000509,14]